[Event "Qatar Masters 2024"]
[Site "Doha"]
[Date "2024.12.03"]
[Round "1.45"]
[White "Moosavifar, Seyed Abolfazl"]
[Black "Ayush Sharma"]
[Result "0-1"]
[Annotator "TA"]
[ECO "B81"]
[WhiteElo "2308"]
[BlackElo "2464"]
[PlyCount "84"]
[EventDate "2024.11.24"]
[EventType "swiss"]
[EventCountry "QAT"]
[SourceTitle "playchess.com"]
[Source "ChessBase"]
[SourceQuality "1"]
[TimeControl "40/5400+30:1800+30"]

{[%evp 16,84,20,20,23,12,25,0,0,-6,-15,-4,-9,-8,0,-29,-33,-53,-23,-14,-22,-51,-33,-59,-60,-69,-41,-76,-99,-63,-94,-69,0,-88,-127,-163,-158,-117,-101,-177,-179,-178,-131,-130,-104,-116,-122,-275,-219,-289,-279,-279,-279,-509,-523,-537,-528,-866,-821,-2155,-2066,-29988,-29989,-29989,-29990,-29991,-29991,-29997,-29998,-29998,-29999]} 1. e4 {[%emt 0:00:02]} c5 {[%emt 0:00:55]} 2. Nf3 {[%emt 0:00:06]} d6 {[%emt 0:00:05]} 3. d4 {[%emt 0:00:03]} cxd4 {[%emt 0:00:04]} 4. Nxd4 {[%emt 0:00:02]} Nf6 {[%emt 0:00:08]} 5. Nc3 {[%emt 0:00:04]} a6 {[%emt 0:00:05]} 6. h3 {[%emt 0:00:03]} e6 {[%emt 0:01:00]} 7. g4 {[%emt 0:01:39]} h6 {[%emt 0:02:38]} 8. Bg2 {[%emt 0:01:49]} Nc6 {[%emt 0:00:10]} 9. Be3 {[%emt 0:00:09]} Be7 {[%emt 0:00:06]} 10. Qd2 {[%emt 0:03:03]} Nxd4 {[%emt 0:09:18]} 11. Bxd4 {[%emt 0:01:26]} b5 {[%emt 0:03:36]} (11... e5 $5 12. Be3 $8 b5 $11) 12. a4 {[%emt 0:27:28]} b4 {[%emt 0:02:43]} 13. Ne2 {[%emt 0:03:50][%cal Od4f6]} e5 {[%emt 0:05:04]} 14. Be3 {[%emt 0:00:10]} a5 {[%emt 0:04:44]} 15. f4 {[%emt 0:06:54]} O-O {[%emt 0:06:42]} 16. Ng3 {[%emt 0:12:22]} Qc7 {[%emt 0:09:46]} 17. O-O {[%emt 0:02:23]} Rd8 {[%emt 0:07:00][%cal Od6d5]} 18. Kh1 {[%emt 0:14:52] [#]} d5 $1 {[%emt 0:02:34]} 19. Qf2 {[%emt 0:05:01]} (19. exd5 Nxd5 20. fxe5 (20. Bxd5 $2 Rxd5 21. Qf2 Bh4 $19) 20... Nxe3 (20... Qxe5 21. Nf5 $17) 21. Qxe3 Bg5 $17) (19. fxe5 Nxe4) 19... d4 {[%emt 0:04:10]} 20. Bd2 {[%emt 0:06:38]} Be6 {[%emt 0:08:41]} (20... Qxc2 21. fxe5 Be6 22. exf6 $18) 21. g5 {[%emt 0:04:39]} hxg5 {[%emt 0:00:27] Black is much more active.} 22. fxg5 {[%emt 0:00:19]} Nh7 $36 {[%emt 0:00:57][%mdl 2048] Black is on the roll.} 23. Nf5 {[%emt 0:02:20]} Ra6 {[%emt 0:15:06]} (23... Bxg5 24. Bxg5 Nxg5 25. Nxg7) (23... Nxg5 $6 24. Qg3 Bxf5 25. exf5 $14) (23... Bf8 $15 24. Rac1 Kh8) 24. Nxe7+ {[%emt 0:01:51]} (24. h4 $1 $11) 24... Qxe7 $17 {[%emt 0:00:05]} 25. Qg3 {[%emt 0:00:02]} Qc7 {[%emt 0:03:48]} 26. Rf2 {[%emt 0:03:29] [#]} Rc6 $1 {[%emt 0:00:35]} (26... Qxc2 $6 27. g6 fxg6 (27... Qxb2 $2 28. gxh7+ Kh8 29. Rg1 $18) 28. Qxe5 $11 (28. Bg5 Qxf2 29. Qxf2 Nxg5 $15)) 27. Rc1 {[%emt 0:01:08] [#]} (27. Bf1 $17) 27... Nf8 $1 $19 {[%emt 0:00:17][%cal Of8g6]} (27... Rxc2 28. Rxc2 Qxc2 29. g6 Qd1+ 30. Kh2 $11) 28. Bf1 {[%emt 0:01:42]} Ng6 {[%emt 0:07:42]} ({Black should play} 28... Rxc2 $19 29. Rxc2 Qxc2 30. Bxb4 Qxe4+ 31. Bg2 Qb1+ 32. Rf1 Qxb2 33. Bxf8 Rxf8 (33... Kxf8 $2 34. Qh4 $19) 34. Qxe5 Qd2) 29. Bd3 $17 {[%emt 0:00:29]} b3 {[%emt 0:00:20]} 30. c3 {[%emt 0:00:36]} Bc4 {[%emt 0:01:32]} 31. Bxc4 $2 {[%emt 0:00:34]} (31. Bf1 $17 {was the only chance.}) 31... Rxc4 $19 {[%emt 0:00:05]} 32. Rcf1 {[%emt 0:00:39]} dxc3 {[%emt 0:01:49]} (32... Rxa4 33. Rxf7 Rd7 (33... Qxf7 34. Rxf7 Ra1+ 35. Kh2 $11) 34. R7f5 $17 (34. Rxd7 Qxd7 35. Qd3 Qe6 $19)) 33. Bxc3 {[%emt 0:00:01]} Rd7 {[%emt 0:01:46]} (33... Rxe4 34. Rxf7 Qc4 (34... Qxf7 35. Rxf7 Kxf7 36. Qg2 $11) 35. R7f3 $19) (33... Nf4 34. g6 fxg6 35. Bxe5 Qxe5 36. Rxf4 Rxe4 37. Qxb3+ Kh7 38. Qg3 Rxf4 39. Qxf4 $17) 34. Qg4 $2 {[%emt 0:00:47]} (34. Re1 {is a better defense.}) 34... Qc6 {[%emt 0:00:44]} (34... Rxa4 $2 35. Rf3 $19) 35. Re1 {[%emt 0:00:46]} Nf4 {[%emt 0:01:22] and ...Rd3 should not be overlooked} 36. Kh2 {[%emt 0:00:16]} Rd3 {[%emt 0:01:45] Repels Re3} (36... Rxe4 37. Rxe4 (37. Bxa5 $2 {is the wrong capture.} Rxe1 38. Bxe1 Rd3 $19) 37... Rd3 38. Rfxf4 (38. Rxe5 Rxh3+ 39. Qxh3 Nxh3 $18) 38... exf4 39. g6 (39. Rxf4 Rxc3 40. bxc3 b2 $18) (39. Qxf4 Qc8 $18) 39... fxg6 (39... Rxc3 $2 40. bxc3 fxg6 41. Qe6+ Qxe6 42. Rxe6 $18) 40. Re7 (40. Rxf4 Rxc3 41. bxc3 b2 $18) (40. Qxf4 Qc8 $18) 40... Rxc3 41. bxc3 $18) 37. Bxe5 {[%emt 0:00:36]} Rxh3+ {[%emt 0:00:05]} 38. Kg1 {[%emt 0:00:30]} Rxe4 {[%emt 0:00:15]} 39. Rxe4 {[%emt 0:00:36]} Qxe4 {[%emt 0:00:10][%csl Ge4][%cal Rh3h1]} 40. Qc8+ {[%emt 0:00:30]} Kh7 {[%emt 0:00:06][%csl Ge4][%cal Rh3h1]} 41. Rxf4 {[%emt 0:30:32]} Rh1+ {[%emt 0:30:34]} 42. Kf2 {[%emt 0:00:00]} Rh2+ {[%emt 0:00:00]} 0-1

[Event "Qatar Masters 2024"]
[Site "Doha"]
[Date "2024.12.03"]
[Round "1.46"]
[White "Goutham Krishna H"]
[Black "Heinemann, Josefine"]
[Result "1-0"]
[Annotator "TA"]
[ECO "A00"]
[WhiteElo "2466"]
[BlackElo "2314"]
[PlyCount "75"]
[EventDate "2024.11.24"]
[EventType "swiss"]
[EventCountry "QAT"]
[SourceTitle "playchess.com"]
[Source "ChessBase"]
[SourceQuality "1"]
[TimeControl "40/5400+30:1800+30"]

{[%evp 15,75,0,0,0,0,-16,0,-6,-6,0,10,14,4,12,21,13,17,13,16,16,10,11,93,86,96,44,118,124,90,67,79,60,53,58,63,66,73,70,102,90,138,136,127,95,126,21,20,16,27,0,38,45,115,131,143,145,141,133,693,704,1311,1306]} 1. g3 {[%emt 0:00:09]} d5 {[%emt 0:00:07]} 2. Bg2 {[%emt 0:00:08]} e5 {[%emt 0:00:12]} 3. d3 {[%emt 0:00:07]} Nf6 {[%emt 0:00:27]} 4. Nf3 {[%emt 0:00:07]} Bd6 {[%emt 0:00:25]} 5. O-O {[%emt 0:00:10]} O-O {[%emt 0:00:18]} 6. c4 {[%emt 0:00:10]} c6 {[%emt 0:01:58]} 7. cxd5 {[%emt 0:00:30]} cxd5 {[%emt 0:00:10]} 8. Nc3 {[%emt 0:00:05]} h6 {[%emt 0:06:20]} 9. e4 {[%emt 0:01:19]} dxe4 {[%emt 0:05:28]} 10. dxe4 {[%emt 0:00:04]} Nc6 {[%emt 0:00:14]} 11. h3 {[%emt 0:11:07]} Bc5 {[%emt 0:07:52]} 12. Qe2 {[%emt 0:02:57]} Nd4 {[%emt 0:08:06]} 13. Nxd4 {[%emt 0:01:03]} Bxd4 {[%emt 0:00:04]} 14. Nb5 {[%emt 0:02:19]} Bb6 {[%emt 0:02:32]} 15. Rd1 {[%emt 0:10:40]} Qe7 {[%emt 0:00:25]} 16. Be3 {[%emt 0:01:27]} Bxe3 {[%emt 0:05:44]} 17. Qxe3 {[%emt 0:00:03]} a6 {[%emt 0:00:53]} 18. Nd6 {[%emt 0:04:12]} Be6 {[%emt 0:10:44]} (18... b5 $11) 19. Qc3 $16 {[%emt 0:07:15]} Bd7 {[%emt 0:14:08]} 20. Rac1 {[%emt 0:21:06]} (20. Nxb7 Bxh3 21. Bxh3 Qxb7 $14) (20. Rd2 $16) 20... Bc6 {[%emt 0:05:08]} (20... Rab8 $14) 21. Nf5 {[%emt 0:00:45][%cal Bd6f5,Bf5e3,Be3c4][%mdl 32]} Qe8 {[%emt 0:00:17]} 22. Qb4 {[%emt 0:05:58]} Kh8 {[%emt 0:05:35]} 23. Rd6 {[%emt 0:02:50][%cal Od6f6] White has more active pieces.} Ng8 {[%emt 0:03:22]} 24. Rcd1 {[%emt 0:05:01]} g6 {[%emt 0:01:46]} 25. Ne3 {[%emt 0:07:38]} Qe7 {[%emt 0:01:07]} 26. Qc3 {[%emt 0:03:08]} f6 {[%emt 0:02:18]} 27. Qd2 {[%emt 0:01:45]} Kg7 {[%emt 0:03:23]} (27... h5 $142) 28. Nc4 {[%emt 0:02:45]} Rac8 {[%emt 0:04:18]} 29. b3 {[%emt 0:02:52]} Rc7 {[%emt 0:02:22]} 30. f4 {[%emt 0:03:50]} ({Better is} 30. Na5 $16) 30... exf4 $11 {[%emt 0:01:20]} 31. Qxf4 {[%emt 0:00:54]} h5 {[%emt 0:02:49]} 32. h4 {[%emt 0:02:07]} Nh6 {[%emt 0:00:25]} 33. e5 {[%emt 0:00:48]} Ng4 {[%emt 0:03:44]} (33... Nf5 $14 34. exf6+ Rxf6 35. Rxf6 Kxf6) 34. Bxc6 $16 {[%emt 0:00:18] and Rd7 should not be overlooked} fxe5 {[%emt 0:01:35]} (34... Rxc6 $2 {too greedy.} 35. Rd7 Re6 36. Rxe7+ $18) 35. Qe4 {[%emt 0:00:32]} Nf6 {[%emt 0:00:44]} 36. Qxe5 {[%emt 0:00:14]} bxc6 $2 {[%emt 0:00:25][%mdl 8192]} (36... Qxe5 $16 37. Nxe5 bxc6) 37. Re6 $18 {[%emt 0:00:11]} Qf7 {[%emt 0:00:39]} 38. Rf1 {[%emt 0:00:29]} 1-0

[Event "Qatar Masters 2024"]
[Site "Doha"]
[Date "2024.12.03"]
[Round "1.47"]
[White "Vaibhav Jayant Raut"]
[Black "Suyarov, Mukhammadzokhid"]
[Result "1/2-1/2"]
[Annotator "TA"]
[ECO "E05"]
[WhiteElo "2304"]
[BlackElo "2464"]
[PlyCount "87"]
[EventDate "2024.11.24"]
[EventType "swiss"]
[EventCountry "QAT"]
[SourceTitle "playchess.com"]
[Source "ChessBase"]
[SourceQuality "1"]
[TimeControl "40/5400+30:1800+30"]

{[%evp 18,87,11,10,11,21,19,15,25,5,26,0,13,0,0,0,11,6,8,6,7,0,8,0,0,-10,0,0,0,0,0,0,0,0,0,0,0,-6,-4,-4,-6,-4,-6,-4,-4,-4,-10,-12,-14,-14,-14,-15,-8,-8,0,0,0,0,0,-14,-14,-14,26,17,19,21,43,14,14,14,43,-56]} 1. c4 {[%emt 0:00:08]} e6 {[%emt 0:00:36]} 2. Nf3 {[%emt 0:00:49]} Nf6 {[%emt 0:00:31]} 3. g3 {[%emt 0:00:53]} d5 {[%emt 0:00:20]} 4. Bg2 {[%emt 0:00:33]} Be7 {[%emt 0:00:37]} 5. d4 {[%emt 0:00:35]} O-O {[%emt 0:00:21]} 6. Qc2 {[%emt 0:00:32]} dxc4 {[%emt 0:01:03]} 7. Qxc4 {[%emt 0:01:00]} a6 {[%emt 0:02:49]} 8. a4 {[%emt 0:00:53]} Bd7 {[%emt 0:01:50]} 9. O-O {[%emt 0:00:32]} Bc6 {[%emt 0:00:29]} 10. Bg5 {[%emt 0:01:34]} Nbd7 {[%emt 0:00:57]} 11. Rd1 {[%emt 0:04:18]} h6 {[%emt 0:01:03]} 12. Bxf6 {[%emt 0:00:08]} Nxf6 {[%emt 0:00:22]} 13. Nc3 {[%emt 0:00:20]} Rc8 {[%emt 0:01:13]} 14. Rac1 {[%emt 0:01:49]} Qd6 {[%emt 0:05:05]} 15. Qd3 {[%emt 0:22:20]} Qb4 {[%emt 0:04:28][%csl LRa4,LRb2]} 16. Qc2 {[%emt 0:05:00]} Bxf3 {[%emt 0:08:29]} 17. Bxf3 {[%emt 0:01:15]} c6 {[%emt 0:00:55]} 18. e3 {[%emt 0:03:53]} Rfd8 {[%emt 0:01:21]} 19. Kg2 {[%emt 0:05:49]} Rc7 {[%emt 0:04:17]} 20. Rb1 {[%emt 0:13:51]} a5 {[%emt 0:04:21]} 21. Ne4 {[%emt 0:02:25]} Rcd7 {[%emt 0:01:56]} 22. Nxf6+ {[%emt 0:10:28]} Bxf6 {[%emt 0:01:07]} 23. h4 {[%emt 0:01:44][%cal Bh2h4,Bh4h5][%mdl 32]} g6 {[%emt 0:09:23]} 24. h5 {[%emt 0:04:32]} g5 {[%emt 0:00:18]} 25. b3 {[%emt 0:01:14]} Bg7 {[%emt 0:04:09][%cal Bf6g7,Bg7f8,Bf8d6][%mdl 32]} 26. Qc4 {[%emt 0:06:30]} Bf8 {[%emt 0:02:10]} 27. g4 {[%emt 0:05:56]} Qe7 {[%emt 0:02:57]} 28. Rd3 {[%emt 0:01:47]} Qf6 {[%emt 0:09:38]} 29. Rbd1 {[%emt 0:00:06]} Bd6 {[%emt 0:00:54]} 30. Qc3 {[%emt 0:00:46]} Bb4 {[%emt 0:06:17]} 31. Qc4 {[%emt 0:00:06]} Kg7 {[%emt 0:00:29]} 32. Be4 {[%emt 0:00:39]} Qe7 {[%emt 0:01:23]} 33. Bf3 {[%emt 0:00:15]} Rd6 {[%emt 0:02:24]} 34. Qc2 {[%emt 0:02:36]} Kg8 {[%emt 0:01:56]} 35. Qc4 {[%emt 0:00:05]} Qd7 {[%emt 0:02:19]} 36. e4 {[%emt 0:01:28]} Qc8 {[%emt 0:04:22]} 37. d5 {[%emt 0:00:50]} cxd5 {[%emt 0:00:09]} 38. exd5 {[%emt 0:00:46]} Qxc4 {[%emt 0:00:33]} 39. bxc4 {[%emt 0:00:01]} e5 {[%emt 0:00:11]} 40. Be4 $1 {[%emt 0:00:30]} Rc8 {[%emt 0:01:03]} 41. Rc1 {[%emt 0:30:35]} Kf8 {[%emt 0:30:46]} 42. Bf5 {[%emt 0:00:00]} Rc7 {[%emt 0:00:00]} 43. Kf3 {[%emt 0:00:00]} Rb6 {[%emt 0:00:00]} 44. Ke4 {[%emt 0:00:06]} (44. Rb3 $14) 1/2-1/2

[Event "Qatar Masters 2024"]
[Site "Doha"]
[Date "2024.12.03"]
[Round "1.48"]
[White "Prraneeth Vuppala"]
[Black "Zhukova, Natalia"]
[Result "1-0"]
[Annotator "TA"]
[ECO "D35"]
[WhiteElo "2459"]
[BlackElo "2302"]
[PlyCount "63"]
[EventDate "2024.11.24"]
[EventType "swiss"]
[EventCountry "QAT"]
[SourceTitle "playchess.com"]
[Source "ChessBase"]
[SourceQuality "1"]
[TimeControl "40/5400+30:1800+30"]

{[%evp 13,63,15,18,18,23,14,19,29,19,32,34,0,0,0,3,12,0,0,10,0,0,0,1,0,27,0,29,28,30,23,27,25,31,31,75,63,68,79,85,74,785,783,655,695,706,708,668,690,950,935,29978,29979]} 1. d4 {[%emt 0:00:09]} Nf6 {[%emt 0:00:21]} 2. c4 {[%emt 0:00:12]} e6 {[%emt 0:00:11]} 3. Nc3 {[%emt 0:00:15]} d5 {[%emt 0:00:23]} 4. cxd5 {[%emt 0:00:24]} exd5 {[%emt 0:00:29]} 5. Bg5 {[%emt 0:00:15]} c6 {[%emt 0:06:23]} 6. e3 {[%emt 0:00:20]} Bd6 {[%emt 0:00:26]} 7. Bd3 {[%emt 0:00:34]} O-O {[%emt 0:00:19]} 8. Nf3 {[%emt 0:00:29]} Re8 {[%emt 0:00:30] Prevents Ne5} 9. O-O {[%emt 0:00:26][%cal Oe3e4]} Bg4 {[%emt 0:07:13]} 10. Qb3 {[%emt 0:00:13]} Bxf3 {[%emt 0:05:29]} 11. gxf3 {[%emt 0:00:52]} Qd7 {[%emt 0:00:31]} 12. Kg2 {[%emt 0:06:16] Bxf6 poses a challenge Dodges Qh3+} (12. Ne2 {simplifies} Be7 13. Ng3 g6 14. Rfc1) 12... Ne4 {[%emt 0:00:38]} 13. Nxe4 {[%emt 0:08:41]} dxe4 {[%emt 0:01:06]} 14. Be2 {[%emt 0:01:55] Active counter play!} Na6 {[%emt 0:29:29]} 15. Bh4 {[%emt 0:08:22]} Re6 {[%emt 0:16:02]} 16. Bg3 {[%emt 0:11:07]} Rh6 {[%emt 0:01:19] ( -> ...Qh3+)} 17. h4 {[%emt 0:01:00]} (17. fxe4 Qh3+ 18. Kg1 Bxg3) 17... exf3+ {[%emt 0:00:34]} 18. Bxf3 {[%emt 0:00:33]} Re8 {[%emt 0:02:45]} 19. h5 {[%emt 0:19:00]} Nb4 {[%emt 0:10:44]} 20. e4 {[%emt 0:03:18]} Bxg3 {[%emt 0:03:02]} 21. fxg3 {[%emt 0:00:08]} Qxd4 {[%emt 0:09:09]} 22. Rad1 {[%emt 0:05:34][%cal Ba1d1,Bd1d7,Bd7f7][%mdl 32] Repels Nd3} Qc5 {[%emt 0:00:04]} 23. Rf2 {[%emt 0:00:13] Prevents Nc2} Qe7 {[%emt 0:04:14] [#] Prevents Rd7} 24. Bg4 $1 {[%emt 0:10:42][%cal Bf3g4,Bg4f5,Bf5h7][%mdl 32]} Rf6 {[%emt 0:00:06]} 25. Rxf6 {[%emt 0:01:45]} gxf6 {[%emt 0:00:02]} 26. Bf5 $36 {[%emt 0:00:13][%mdl 2048] Strongly threatening Rd7. White is in control.} Na6 $2 {[%emt 0:01:30][%mdl 8192]} (26... Nd5 $16) 27. Rd7 $18 {[%emt 0:01:12]} Qf8 {[%emt 0:00:01] [#]} 28. Bxh7+ $1 {[%emt 0:03:13][%mdl 512]} Kg7 {[%emt 0:00:56] aiming for ...Nc5.} 29. h6+ $1 {[%emt 0:00:27]} (29. Qxb7 Nc5 $17) 29... Kh8 {[%emt 0:00:30]} 30. Rxf7 {[%emt 0:01:24]} Qxh6 {[%emt 0:00:30]} 31. Bf5 {[%emt 0:00:11] White threatens Rh7+ and mate.} ({Stronger than} 31. Qxb7 Nc5 32. Qxc6 Qd2+ 33. Kh3 Qh6+ 34. Kg2 Qd2+ 35. Kh3 Qh6+ 36. Kg2 $11) 31... Qd2+ {[%emt 0:00:17]} 32. Kf3 {[%emt 0:00:24]} 1-0

[Event "Qatar Masters 2024"]
[Site "Doha"]
[Date "2024.12.03"]
[Round "1.49"]
[White "Bagwe Gaurang"]
[Black "Swayams, Mishra"]
[Result "0-1"]
[Annotator "TA"]
[ECO "C96"]
[WhiteElo "2302"]
[BlackElo "2456"]
[PlyCount "120"]
[EventDate "2024.11.24"]
[EventType "swiss"]
[EventCountry "QAT"]
[SourceTitle "playchess.com"]
[Source "ChessBase"]
[SourceQuality "1"]
[TimeControl "40/5400+30:1800+30"]

{[%evp 40,120,0,0,0,0,0,-41,-52,-49,-11,-25,-16,-96,-93,-68,-48,-118,-102,-184,-194,-394,-206,-373,-381,-474,-367,-357,-400,-403,-375,-553,-551,-637,-628,-609,-579,-641,-614,-659,-664,-585,-695,-679,-701,-1244,-1270,-1278,-1211,-2416,-2528,-5744,-5679,-5877,-5785,-29973,-29972,-29975,-29976,-29977,-29977,-29979,-29980,-29980,-29981,-29981,-29982,-29982,-29983,-29985,-29986,-29987,-29987,-29987,-29988,-29989,-29990,-29990,-29991,-29991,-29992,-29993,-712]} 1. e4 {[%emt 0:00:06]} e5 {[%emt 0:00:22]} 2. Nf3 {[%emt 0:00:07]} Nc6 {[%emt 0:00:02]} 3. Bb5 {[%emt 0:00:28]} a6 {[%emt 0:00:09]} 4. Ba4 {[%emt 0:00:06]} Nf6 {[%emt 0:00:11]} 5. O-O {[%emt 0:00:10]} Be7 {[%emt 0:00:16]} 6. Re1 {[%emt 0:00:19]} b5 {[%emt 0:00:14]} 7. Bb3 {[%emt 0:00:05]} d6 {[%emt 0:00:06]} 8. c3 {[%emt 0:00:52]} O-O {[%emt 0:00:08]} 9. h3 {[%emt 0:00:06]} Na5 {[%emt 0:00:50]} 10. Bc2 {[%emt 0:00:20]} c5 {[%emt 0:00:03]} 11. d4 {[%emt 0:00:50]} Nd7 {[%emt 0:00:07]} 12. Nbd2 {[%emt 0:01:56]} exd4 {[%emt 0:00:28]} 13. cxd4 {[%emt 0:00:31]} Nc6 {[%emt 0:00:17]} 14. dxc5 {[%emt 0:14:03]} Nxc5 {[%emt 0:02:07]} 15. a3 {[%emt 0:02:33]} Bf6 {[%emt 0:10:17]} 16. Rb1 {[%emt 0:06:46]} Bb7 {[%emt 0:07:05]} 17. b4 {[%emt 0:03:24]} Ne6 {[%emt 0:00:14]} 18. Bb3 {[%emt 0:02:05]} Rc8 {[%emt 0:12:16]} 19. Nf1 {[%emt 0:04:24]} Ncd4 {[%emt 0:09:03]} 20. Bd5 {[%emt 0:09:50]} Bxd5 {[%emt 0:09:31]} 21. exd5 {[%emt 0:05:46]} Nxf3+ {[%emt 0:00:03]} 22. Qxf3 {[%emt 0:00:11]} Nd4 {[%emt 0:00:21]} 23. Qg4 {[%emt 0:06:07]} Nc2 {[%emt 0:01:12]} 24. Re4 {[%emt 0:01:13]} Re8 {[%emt 0:07:43]} 25. Ng3 {[%emt 0:02:36]} Rc4 {[%emt 0:02:55]} 26. Bd2 {[%emt 0:18:32]} (26. Rxc4 $11 Re1+ 27. Kh2 bxc4 28. Bb2 (28. Qxc4 $2 Nxa3 29. Bxa3 Rxb1 $19)) 26... Rexe4 {[%emt 0:08:21]} 27. Nxe4 {[%emt 0:00:09]} Qe7 {[%emt 0:02:03]} (27... Nxa3 28. Nxf6+ Qxf6 29. Qd7 $11) 28. f3 {[%emt 0:07:16]} (28. Nxf6+ $15 Qxf6 29. Qd7) 28... g6 {[%emt 0:04:31]} 29. Kh1 {[%emt 0:00:36]} (29. Nxf6+ $17 Qxf6 30. Qg5 Qd4+ (30... Qxg5 31. Bxg5 Kg7 32. Rb2 $15) 31. Kh2) 29... Be5 $19 {[%emt 0:04:08]} (29... Nxa3 30. Re1 Nc2 31. Nxf6+ Qxf6 32. Qd7 $11) 30. Bg5 $2 {[%emt 0:04:56]} (30. f4 {was worth a try.} Bg7 (30... Rxe4 31. Qc8+ Qf8 32. Qxc2 $17) (30... Nxa3 31. Re1 $17) 31. Ng3) 30... f6 {[%emt 0:01:48]} (30... Qc7 $142 31. Qh4 f5 (31... Nxa3 32. Re1 $11)) 31. Bh4 $2 {[%emt 0:00:38]} (31. Bc1) 31... Kf7 $19 {[%emt 0:01:41]} (31... Nxa3 $2 32. Re1 Nc2 (32... Rxb4 $2 33. f4 $18) 33. Re2 $17) 32. Rd1 {[%emt 0:04:35]} h5 {[%emt 0:06:55]} ({Don't play} 32... Ne3 33. Qe6+ Qxe6 34. dxe6+ Kxe6 35. Re1 $19) 33. Qe6+ {[%emt 0:00:14]} Qxe6 {[%emt 0:00:02]} 34. dxe6+ {[%emt 0:00:04]} Kxe6 {[%emt 0:00:09]} 35. Bf2 {[%emt 0:03:39]} (35. Bxf6 $142 Rxe4 36. fxe4 Kxf6 (36... Bxf6 $2 37. Rd3 $19) 37. Rd3) 35... Nxa3 $19 {[%emt 0:01:29]} 36. g3 {[%emt 0:00:01]} Rxb4 {[%emt 0:01:44]} 37. Kg2 {[%emt 0:00:08]} g5 {[%emt 0:00:38]} 38. Re1 {[%emt 0:00:24]} Kf7 {[%emt 0:01:16]} 39. h4 {[%emt 0:00:17]} Rb2 {[%emt 0:05:14]} 40. hxg5 {[%emt 0:01:37]} f5 {[%emt 0:03:07]} 41. g6+ {[%emt 0:31:27]} Kg7 {[%emt 0:06:06]} 42. Nc5 {[%emt 0:00:00]} Rxf2+ {[%emt 0:02:05]} 43. Kxf2 {[%emt 0:00:00]} Bd4+ {[%emt 0:00:02]} ({Worse is} 43... Kxg6 44. Nxa6 b4 45. Nxb4 Bd4+ 46. Kf1 $11) 44. Kg2 {[%emt 0:00:00]} Bxc5 {[%emt 0:00:11]} 45. g4 {[%emt 0:00:00]} hxg4 {[%emt 0:00:17]} 46. fxg4 {[%emt 0:00:00]} Nc2 {[%emt 0:01:14]} 47. Re6 {[%emt 0:00:00]} fxg4 {[%emt 0:00:21]} 48. Kg3 {[%emt 0:00:00]} Nd4 {[%emt 0:00:39]} 49. Re8 {[%emt 0:00:00]} a5 {[%emt 0:00:17]} 50. Kxg4 {[%emt 0:00:00]} Kxg6 {[%emt 0:00:02]} 51. Kf4 {[%emt 0:00:00]} b4 {[%emt 0:00:52]} 52. Ke4 {[%emt 0:00:00]} b3 {[%emt 0:00:32]} 53. Rg8+ {[%emt 0:00:00]} Kf7 {[%emt 0:00:07]} 54. Rg2 {[%emt 0:00:00]} a4 {[%emt 0:00:11]} 55. Kd5 {[%emt 0:00:00]} a3 {[%emt 0:00:10]} 56. Rf2+ {[%emt 0:00:00]} Ke7 {[%emt 0:00:07]} 57. Rf1 {[%emt 0:00:00]} a2 {[%emt 0:00:13]} 58. Re1+ {[%emt 0:00:00]} Kd7 {[%emt 0:00:11]} 59. Rh1 {[%emt 0:00:00]} Nf5 {[%emt 0:00:18]} 60. Ra1 {[%emt 0:00:00]} Ne3+ {[%emt 0:00:30]} 0-1